fUSD/lending_fUSD_20240521
["ID","MTS","AMOUNT","RATE_DAILY","PERIOD"]
[327635514,1716263442976,-10732.32,0.00038903,6]
[327635515,1716263442987,-10732.32,0.00038903,6]
[327635516,1716263442996,-10732.32,0.00038903,6]
[327635517,1716263443006,-10732.32,0.00038903,6]
[327635518,1716263443016,-507.01912267,0.00038904,6]
[327635519,1716263443025,-500.0,0.00038904,6]
[327635520,1716263443036,-1175.99,0.00038904,6]
[327635521,1716263443045,-500.0,0.00038904,6]
[327635522,1716263443055,-500.0,0.00038904,6]
[327635523,1716263443064,-509.58001982,0.00038904,6]
[327635524,1716263443074,-500.0,0.00038904,6]
[327635525,1716263443084,-876.51,0.00038904,6]
[327635526,1716263443093,-500.0,0.00038904,6]
[327635527,1716263443103,-525.17,0.00038904,6]
[327635528,1716263443113,-500.0,0.00038904,6]
[327635529,1716263443122,-500.0,0.00038904,6]
[327635530,1716263443131,-500.0,0.00038904,6]
[327635531,1716263443141,-500.0,0.00038904,6]
[327635532,1716263443150,-500.0,0.00038904,6]
[327635533,1716263443160,-500.0,0.00038904,6]
[327635534,1716263443170,-500.0,0.00038904,6]
[327635535,1716263443179,-842.08,0.00038904,6]
[327635536,1716263443189,-500.0,0.00038904,6]
[327635537,1716263443199,-500.0,0.00038904,6]
[327635538,1716263443209,-555.38,0.00038904,6]
[327635539,1716263443218,-500.0,0.00038904,6]
[327635540,1716263443228,-1144.63,0.00038904,6]
[327635541,1716263443238,-500.0,0.00038904,6]
[327635542,1716263443247,-500.0,0.00038904,6]
[327635543,1716263443258,-688.66,0.00038904,6]
[327635544,1716263443268,-500.0,0.00038904,6]
[327635545,1716263443278,-1081.83,0.00038904,6]
[327635546,1716263443288,-1015.81,0.00038904,6]
[327635547,1716263443297,-500.0,0.00038904,6]
[327635548,1716263443307,-500.0,0.00038904,6]
[327635549,1716263443317,-500.0,0.00038904,6]
[327635550,1716263443327,-500.0,0.00038904,6]
[327635551,1716263443337,-500.0,0.00038904,6]
[327635552,1716263443347,-500.0,0.00038904,6]
[327635553,1716263443357,-699.51,0.00038904,6]
[327635554,1716263443367,-500.0,0.00038904,6]
[327635555,1716263443376,-685.98,0.00038904,6]
[327635556,1716263443386,-879.71,0.00038904,6]
[327635557,1716263443396,-500.0,0.00038904,6]
[327635558,1716263443405,-580.89,0.00038904,6]
[327635559,1716263443415,-500.0,0.00038904,6]
[327635560,1716263443424,-500.0,0.00038904,6]
[327635561,1716263443434,-768.23,0.00038904,6]
[327635562,1716263443443,-500.0,0.00038904,6]
[327635563,1716263443453,-500.0,0.00038904,6]
[327635564,1716263443463,-500.0,0.00038904,6]
[327635565,1716263443474,-500.0,0.00038904,6]
[327635566,1716263443483,-1048.81,0.00038904,6]
[327635567,1716263443493,-500.0,0.00038904,6]
[327635568,1716263443505,-500.0,0.00038904,6]
[327635569,1716263443515,-648.64,0.00038904,6]
[327635570,1716263443524,-500.0,0.00038904,6]
[327635571,1716263443534,-1083.25,0.00038904,6]
[327635572,1716263443544,-1083.96,0.00038904,6]
[327635573,1716263443553,-926.13,0.00038904,6]
[327635574,1716263443563,-500.0,0.00038904,6]
[327635575,1716263443573,-500.0,0.00038904,6]
[327635576,1716263443583,-500.0,0.00038904,6]
[327635577,1716263443592,-500.0,0.00038904,6]
[327635578,1716263443603,-500.0,0.00038904,6]
[327635579,1716263443613,-651.6,0.00038904,6]
[327635580,1716263443623,-500.0,0.00038904,6]
[327635581,1716263443633,-500.0,0.00038904,6]
[327635582,1716263443642,-875.64,0.00038904,6]
[327635583,1716263443651,-500.0,0.00038904,6]
[327635584,1716263443661,-500.0,0.00038904,6]
[327635585,1716263443671,-509.23600418,0.00038904,6]
[327635586,1716263443680,-500.0,0.00038904,6]
[327635587,1716263443690,-500.0,0.00038904,6]
[327635588,1716263443699,-500.0,0.00038904,6]
[327635589,1716263443709,-938.94,0.00038904,6]
[327635590,1716263443719,-603.49,0.00038904,6]
[327635591,1716263443728,-1450.63,0.00038904,6]
[327635592,1716263443739,-500.0,0.00038904,6]
[327635593,1716263443749,-500.0,0.00038904,6]
[327635594,1716263443759,-802.74,0.00038904,6]
[327635595,1716263443768,-500.0,0.00038904,6]
[327635596,1716263443778,-1371.65,0.00038904,6]
[327635597,1716263443787,-500.0,0.00038904,6]
[327635598,1716263443798,-856.78,0.00038904,6]
[327635599,1716263443809,-933.96,0.00038904,6]
[327635600,1716263443820,-895.94,0.00038904,6]
[327635601,1716263443830,-895.12,0.00038904,6]
[327635602,1716263443841,-500.0,0.00038904,6]
[327635603,1716263443851,-575.67,0.00038904,6]
[327635604,1716263443862,-500.0,0.00038904,6]
[327635605,1716263443875,-712.56,0.00038904,6]
[327635606,1716263443885,-1023.58,0.00038904,6]
[327635607,1716263443895,-500.0,0.00038904,6]
[327635608,1716263443905,-500.0,0.00038904,6]
[327635609,1716263443915,-506.41538062,0.00038904,6]
[327635610,1716263443925,-625.53,0.00038904,6]
[327635611,1716263443936,-500.0,0.00038904,6]
[327635612,1716263443948,-500.0,0.00038904,6]
[327635613,1716263443958,-500.0,0.00038904,6]
[327635614,1716263443968,-500.0,0.00038904,6]
[327635615,1716263443978,-919.32,0.00038904,6]
[327635616,1716263443988,-1089.47,0.00038904,6]
[327635617,1716263443998,-525.01,0.00038904,6]
[327635618,1716263444008,-500.0,0.00038904,6]
[327635619,1716263444018,-500.0,0.00038904,6]
[327635620,1716263444028,-500.0,0.00038904,6]
[327635621,1716263444038,-516.91,0.00038904,6]
[327635622,1716263444047,-500.0,0.00038904,6]
[327635623,1716263444057,-566.45,0.00038904,6]
[327635624,1716263444067,-508.1881932,0.00038904,6]
[327635625,1716263444077,-500.0,0.00038904,6]
[327635626,1716263444087,-593.09,0.00038904,6]
[327635627,1716263444097,-764.18,0.00038904,6]
[327635628,1716263444107,-614.92,0.00038904,6]
[327635629,1716263444123,-500.0,0.00038904,6]
[327635630,1716263444142,-500.0,0.00038904,6]
[327635631,1716263444152,-514.3287381,0.00038904,6]
[327635632,1716263444161,-960.03,0.00038904,6]
[327635633,1716263444171,-512.5621629,0.00038904,6]
[327635634,1716263444181,-500.0,0.00038904,2]
[327635635,1716263444191,-353.81746975,0.00038904,6]
[327635636,1716263444201,-500.0,0.00038904,6]
[327635637,1716263444211,-189.30103207,0.00038904,6]
[327635639,1716263444220,-557.26,0.00038904,6]
[327635641,1716263444231,-500.0,0.00038904,6]
[327635643,1716263444240,-500.0,0.00038904,6]
[327635645,1716263444250,-1235.47,0.00038904,2]
[327635647,1716263444260,-512.90867833,0.00038904,6]
[327635649,1716263444271,-500.0,0.00038904,6]
[327635652,1716263444280,-500.0,0.00038904,6]
[327635654,1716263444290,-298.16784985,0.00038904,6]
[327635656,1716263444300,-500.0,0.00038904,6]
[327635658,1716263444309,-658.46,0.00038904,6]
[327635660,1716263444319,-500.0,0.00038904,6]
[327635662,1716263444329,-500.0,0.00038904,6]
[327635663,1716263444339,-739.19,0.00038904,6]
[327635665,1716263444348,-503.45,0.00038904,6]
[327635668,1716263444358,-1104.86,0.00038904,6]
[327635670,1716263444368,-508.3,0.00038904,6]
[327635672,1716263444378,-500.0,0.00038904,6]
[327635674,1716263444388,-1105.79,0.00038904,6]
[327635676,1716263444397,-619.37,0.00038904,6]
[327635678,1716263444407,-657.24,0.00038904,6]
[327635680,1716263444418,-500.0,0.00038904,6]
[327635682,1716263444427,-500.0,0.00038904,6]
[327635684,1716263444436,-1084.55,0.00038904,6]
[327635686,1716263444446,-509.04120737,0.00038904,6]
[327635688,1716263444455,-500.0,0.00038904,6]
[327635690,1716263444464,-1791.33,0.00038904,6]
[327635692,1716263444474,-310.47177025,0.00038904,2]
[327635694,1716263444484,-500.0,0.00038904,6]
[327635696,1716263444494,-985.02,0.00038904,6]
[327635698,1716263444503,-544.38,0.00038904,6]
[327635700,1716263444513,-604.09,0.00038904,6]
[327635702,1716263444522,-882.34,0.00038904,6]
[327635704,1716263444532,-500.0,0.00038904,6]
[327635706,1716263444540,-1504.16,0.00038904,6]
[327635708,1716263444550,-199.86986416,0.00038904,2]
[327635710,1716263444559,-509.7872359,0.00038904,6]
[327635712,1716263444568,-500.0,0.00038904,6]
[327635714,1716263444577,-2390.17,0.00038904,6]
[327635716,1716263444586,-154.86415,0.00038904,14]
[327635718,1716263444595,-500.0,0.00038904,6]
[327635720,1716263444604,-1117.86,0.00038904,6]
[327635722,1716263444615,-872.47,0.00038904,6]
[327635724,1716263444624,-799.39,0.00038904,6]
[327635726,1716263444634,-931.34,0.00038904,6]
[327635728,1716263444644,-155.06203114,0.00038904,2]
[327635730,1716263444653,-1219.75,0.00038904,6]
[327635732,1716263444662,-687.36,0.00038904,6]
[327635734,1716263444672,-505.85402604,0.00038904,6]
[327635736,1716263444681,-500.0,0.00038904,6]
[327635738,1716263444691,-500.0,0.00038904,6]
[327635740,1716263444702,-952.69,0.00038904,6]
[327635741,1716263444711,-1140.12,0.00038904,6]
[327635742,1716263444720,-1004.01,0.00038904,6]
[327635743,1716263444730,-995.17,0.00038904,6]
[327635744,1716263444741,-507.89989381,0.00038904,6]
[327635745,1716263444751,-500.0,0.00038904,6]
[327635746,1716263444762,-500.0,0.00038904,6]
[327635747,1716263444773,-1240.48,0.00038904,6]
[327635748,1716263444783,-1874.47,0.00038904,6]
[327635749,1716263444793,-500.0,0.00038904,6]
[327635750,1716263444804,-500.0,0.00038904,6]
[327635751,1716263444814,-500.0,0.00038904,6]
[327635752,1716263444824,-883.75,0.00038904,6]
[327635753,1716263444835,-500.0,0.00038904,6]
[327635754,1716263444844,-667.19,0.00038904,6]
[327635755,1716263444855,-500.0,0.00038904,6]
[327635756,1716263444869,-748.0,0.00038904,6]
[327635757,1716263444878,-500.0,0.00038904,6]
[327635758,1716263444889,-500.0,0.00038904,6]
[327635759,1716263444900,-1140.03,0.00038904,6]
[327635760,1716263444910,-500.0,0.00038904,6]
[327635761,1716263444920,-500.0,0.00038904,6]
[327635762,1716263444930,-817.58,0.00038904,6]
[327635763,1716263444940,-2102.66,0.00038904,6]
[327635764,1716263444950,-1162.48,0.00038904,6]
[327635765,1716263444959,-500.0,0.00038904,6]
[327635770,1716263445305,-843.54,0.00038904,6]
[327635771,1716263445315,-2290.17,0.00038904,6]
[327635772,1716263445325,-500.0,0.00038904,6]
[327635773,1716263445335,-1296.53,0.00038904,6]
[327635774,1716263445345,-500.0,0.00038904,6]
[327635775,1716263445355,-1188.41,0.00038904,6]
[327635776,1716263445365,-1456.82,0.00038904,6]
[327635777,1716263445374,-500.0,0.00038904,6]
[327635778,1716263445383,-691.24,0.00038904,6]
[327635779,1716263445394,-500.0,0.00038904,6]
[327635780,1716263445403,-500.0,0.00038904,6]
[327635781,1716263445413,-1379.74,0.00038904,6]
[327635782,1716263445423,-500.0,0.00038904,6]
[327635783,1716263445432,-1485.55,0.00038904,6]
[327635784,1716263445442,-1281.45,0.00038904,6]
[327635785,1716263445452,-1431.69,0.00038904,6]
[327635786,1716263445462,-825.72,0.00038904,6]
[327635787,1716263445472,-837.58,0.00038904,6]
[327635788,1716263445483,-500.0,0.00038904,6]
[327635789,1716263445494,-500.0,0.00038904,6]
[327635790,1716263445504,-500.0,0.00038904,6]
[327635791,1716263445513,-1247.59,0.00038904,6]
[327635792,1716263445522,-502.19574317,0.00038904,6]
[327635793,1716263445532,-779.34,0.00038904,6]
[327635794,1716263445543,-500.0,0.00038904,6]
[327635795,1716263445553,-500.0,0.00038904,6]
[327635796,1716263445562,-213.45769684,0.00038904,6]
[327635797,1716263445571,-1168.23,0.00038904,6]
[327635798,1716263445580,-506.62820175,0.00038904,6]
[327635799,1716263445590,-782.03,0.00038904,6]
[327635800,1716263445600,-500.0,0.00038904,6]
[327635801,1716263445610,-506.6678195,0.00038904,6]
[327635802,1716263445619,-500.0,0.00038904,6]
[327635803,1716263445629,-431.07784678,0.00038904,6]
[327635804,1716263445638,-500.0,0.00038904,6]
[327635805,1716263445648,-761.44,0.00038904,6]
[327635806,1716263445658,-197.76766468,0.00038904,6]
[327635807,1716263445667,-1499.85,0.00038904,6]
[327635808,1716263445677,-500.0,0.00038904,6]
[327635809,1716263445687,-500.0,0.00038904,6]
[327635810,1716263445696,-1500.47,0.00038904,6]
[327635811,1716263445707,-500.0,0.00038904,6]
[327635812,1716263445716,-500.0,0.00038904,6]
[327635813,1716263445727,-500.0,0.00038904,6]
[327635814,1716263445737,-516.87,0.00038904,6]
[327635815,1716263445747,-2081.74,0.00038904,6]
[327635816,1716263445757,-500.0,0.00038904,6]
[327635817,1716263445768,-1127.44,0.00038904,6]
[327635818,1716263445777,-1591.43,0.00038904,6]
[327635819,1716263445788,-704.15,0.00038904,6]
[327635820,1716263445798,-500.0,0.00038904,6]
[327635821,1716263445807,-1951.76,0.00038904,6]
[327635822,1716263445816,-500.0,0.00038904,6]
[327635823,1716263445828,-500.0,0.00038904,6]
[327635824,1716263445838,-2250.59,0.00038904,6]
[327635825,1716263445848,-500.0,0.00038904,6]
[327635826,1716263445860,-500.0,0.00038904,6]
[327635827,1716263445871,-1175.31,0.00038904,6]
[327635828,1716263445880,-500.0,0.00038904,6]
[327635829,1716263445889,-508.4,0.00038904,6]
[327635830,1716263445899,-798.67,0.00038904,6]
[327635831,1716263445909,-500.0,0.00038904,6]
[327635832,1716263445919,-500.0,0.00038904,6]
[327635833,1716263445928,-500.0,0.00038904,6]
[327635834,1716263445939,-1842.53,0.00038904,6]
[327635835,1716263445951,-151.0,0.00038904,14]
[327635836,1716263445960,-627.86,0.00038904,6]
[327635837,1716263445969,-151.0,0.00038904,14]
[327635838,1716263445979,-500.0,0.00038904,6]
[327635839,1716263445989,-510.65550968,0.00038904,6]
[327635840,1716263445999,-500.0,0.00038904,6]
[327635841,1716263446009,-500.0,0.00038904,6]
[327635842,1716263446018,-500.0,0.00038904,6]
[327635843,1716263446028,-500.0,0.00038904,6]
[327635844,1716263446038,-500.0,0.00038904,6]
[327635845,1716263446048,-831.08,0.00038904,6]
[327635846,1716263446057,-518.85,0.00038904,6]
[327635847,1716263446067,-1022.16,0.00038904,6]
[327635848,1716263446077,-715.11,0.00038904,6]
[327635849,1716263446087,-500.0,0.00038904,6]
[327635850,1716263446096,-500.0,0.00038904,6]
[327635851,1716263446107,-500.0,0.00038904,6]
[327635852,1716263446116,-500.0,0.00038904,6]
[327635853,1716263446125,-766.12,0.00038904,6]
[327635854,1716263446135,-151.0,0.00038904,14]
[327635855,1716263446144,-1772.49,0.00038904,6]
[327635856,1716263446154,-301.41434218,0.00038904,14]
[327635857,1716263446163,-500.0,0.00038904,6]
[327635858,1716263446172,-500.0,0.00038904,6]
[327635859,1716263446182,-500.0,0.00038904,6]
[327635860,1716263446192,-500.0,0.00038904,6]
[327635861,1716263446202,-1001.65,0.00038904,6]
[327635862,1716263446212,-500.0,0.00038904,6]
[327635863,1716263446222,-500.0,0.00038904,6]
[327635864,1716263446231,-507.57073875,0.00038904,6]
[327635865,1716263446241,-721.92,0.00038904,6]
[327635866,1716263446251,-1117.3,0.00038904,6]
[327635867,1716263446261,-952.83,0.00038904,6]
[327635868,1716263446270,-982.95,0.00038904,6]
[327635869,1716263446281,-1063.35,0.00038904,6]
[327635870,1716263446291,-151.0,0.00038904,14]
[327635871,1716263446300,-500.0,0.00038904,6]
[327635872,1716263446309,-500.0,0.00038904,6]
[327635873,1716263446318,-500.0,0.00038904,6]
[327635874,1716263446328,-1173.88,0.00038904,6]
[327635875,1716263446338,-500.0,0.00038904,6]
[327635876,1716263446348,-500.0,0.00038904,6]
[327635877,1716263446358,-989.0,0.00038904,6]
[327635878,1716263446368,-500.0,0.00038904,6]
[327635879,1716263446377,-512.27,0.00038904,6]
[327635880,1716263446387,-500.0,0.00038904,6]
[327635881,1716263446397,-890.9,0.00038904,6]
[327635882,1716263446406,-996.14,0.00038904,6]
[327635883,1716263446416,-500.0,0.00038904,6]
[327635884,1716263446426,-500.0,0.00038904,6]
[327635885,1716263446435,-902.74,0.00038904,6]
[327635886,1716263446445,-500.0,0.00038904,6]
[327635887,1716263446455,-1856.04,0.00038904,6]
[327635888,1716263446466,-1017.27,0.00038904,6]
[327635889,1716263446476,-733.78,0.00038904,6]
[327635890,1716263446486,-1105.43,0.00038904,6]
[327635891,1716263446496,-994.11,0.00038904,6]
[327635892,1716263446507,-500.0,0.00038904,6]
[327635893,1716263446516,-500.0,0.00038904,6]
[327635894,1716263446527,-1249.96,0.00038904,6]
[327635895,1716263446537,-500.0,0.00038904,6]
[327635896,1716263446546,-500.0,0.00038904,6]
[327635897,1716263446556,-500.0,0.00038904,6]
[327635898,1716263446566,-1368.87,0.00038904,6]
[327635899,1716263446575,-500.0,0.00038904,6]
[327635900,1716263446585,-500.0,0.00038904,6]
[327635901,1716263446596,-500.0,0.00038904,6]
[327635902,1716263446606,-1560.13,0.00038904,6]
[327635903,1716263446616,-1132.63,0.00038904,6]
[327635904,1716263446625,-500.0,0.00038904,6]
[327635905,1716263446635,-502.53201285,0.00038904,6]
[327635906,1716263446644,-500.0,0.00038904,6]
[327635907,1716263446653,-507.07008671,0.00038904,6]
[327635908,1716263446664,-500.0,0.00038904,6]
[327635909,1716263446673,-1161.2,0.00038904,6]
[327635910,1716263446683,-952.91,0.00038904,6]
[327635911,1716263446692,-1524.66,0.00038904,6]
[327635912,1716263446701,-500.0,0.00038904,6]
[327635913,1716263446711,-500.0,0.00038904,6]
[327635914,1716263446720,-519.0061188,0.00038904,6]
[327635915,1716263446729,-508.18875329,0.00038904,6]
[327635916,1716263446738,-500.0,0.00038904,6]
[327635917,1716263446748,-500.0,0.00038904,6]
[327635918,1716263446757,-1318.64,0.00038904,6]
[327635919,1716263446767,-502.08,0.00038904,6]
[327635920,1716263446776,-500.0,0.00038904,6]
[327635921,1716263446786,-1165.33,0.00038904,6]
[327635922,1716263446795,-500.0,0.00038904,6]
[327635923,1716263446805,-577.58,0.00038904,6]
[327635924,1716263446816,-1680.3,0.00038904,6]
[327635925,1716263446826,-500.0,0.00038904,6]
[327635926,1716263446836,-500.0,0.00038904,6]
[327635927,1716263446846,-500.0,0.00038904,6]
[327635928,1716263446856,-1275.13,0.00038904,6]
[327635929,1716263446865,-1031.06,0.00038904,6]
[327635930,1716263446881,-2330.8,0.00038904,6]
[327635931,1716263446891,-1082.26,0.00038904,6]
[327635932,1716263446900,-515.10738769,0.00038904,6]
[327635933,1716263446910,-592.75,0.00038904,6]
[327635934,1716263446921,-1752.81,0.00038904,6]
[327635935,1716263446930,-2011.2,0.00038904,6]
[327635936,1716263446939,-500.0,0.00038904,6]
[327635937,1716263446951,-500.0,0.00038904,6]
[327635938,1716263446962,-1222.4,0.00038904,6]
[327635939,1716263446972,-512.09630546,0.00038904,6]
[327635940,1716263446982,-1163.13,0.00038904,6]
[327635941,1716263446992,-519.35114407,0.00038904,6]
[327635942,1716263447003,-500.0,0.00038904,6]
[327635943,1716263447013,-500.0,0.00038904,6]
[327635944,1716263447023,-508.74505915,0.00038904,6]
[327635945,1716263447033,-519.95715336,0.00038904,6]
[327635946,1716263447044,-1319.7,0.00038904,6]
[327635947,1716263447054,-500.0,0.00038904,6]
[327635948,1716263447064,-1109.83,0.00038904,6]
[327635949,1716263447075,-500.0,0.00038904,6]
[327635950,1716263447084,-500.0,0.00038904,6]
[327635951,1716263447095,-507.92491857,0.00038904,6]
[327635952,1716263447104,-1257.2,0.00038904,6]
[327635953,1716263447115,-1354.98,0.00038904,6]
[327635954,1716263447125,-500.0,0.00038904,6]
[327635955,1716263447135,-500.0,0.00038904,6]
[327635956,1716263447144,-420.09598331,0.00038904,6]
[327635957,1716263447154,-1513.13,0.00038904,6]
[327635958,1716263447163,-1088.24,0.00038904,6]
[327635959,1716263447173,-500.0,0.00038904,6]
[327635960,1716263447182,-1896.97,0.00038904,6]
[327635961,1716263447192,-151.0,0.00038904,14]
[327635962,1716263447202,-500.0,0.00038904,6]
[327635963,1716263447212,-1327.29,0.00038904,6]
[327635964,1716263447222,-513.610611,0.00038904,6]
[327635965,1716263447232,-500.0,0.00038904,6]
[327635966,1716263447241,-493.92021948,0.00038904,6]
[327635967,1716263447251,-1000.82,0.00038904,6]
[327635968,1716263447261,-515.37,0.00038904,6]
[327635969,1716263447270,-500.0,0.00038904,6]
[327635970,1716263447280,-555.31,0.00038904,6]
[327635971,1716263447290,-1744.63,0.00038904,6]
[327635972,1716263447300,-564.62,0.00038904,6]
[327635973,1716263447310,-604.42,0.00038904,6]
[327635974,1716263447320,-500.0,0.00038904,6]
[327635975,1716263447330,-511.99855883,0.00038904,6]
[327635976,1716263447340,-510.04202169,0.00038904,6]
[327635977,1716263447350,-500.0,0.00038904,6]
[327635978,1716263447361,-500.0,0.00038904,6]
[327635979,1716263447373,-785.03,0.00038904,6]
[327635980,1716263447393,-500.0,0.00038904,6]
[327635981,1716263447407,-1706.06,0.00038904,6]
[327635982,1716263447418,-860.3,0.00038904,6]
[327635983,1716263447429,-964.49,0.00038904,6]
[327635984,1716263447439,-513.39,0.00038904,6]
[327635985,1716263447450,-500.0,0.00038904,6]
[327635986,1716263447460,-2162.05,0.00038904,6]
[327635987,1716263447471,-543.88,0.00038904,6]
[327635988,1716263447687,-500.0,0.00038904,6]
[327635989,1716263447697,-500.0,0.00038904,6]
[327635990,1716263447706,-846.15,0.00038904,6]
[327635991,1716263447716,-677.06,0.00038904,6]
[327635992,1716263447726,-151.0,0.00038904,14]
[327635993,1716263447736,-151.0,0.00038904,14]
[327635994,1716263447745,-729.24,0.00038904,6]
[327635995,1716263447754,-500.0,0.00038904,6]
[327635996,1716263447764,-1558.53,0.00038904,6]
[327635997,1716263447773,-500.0,0.00038904,6]
[327635998,1716263447783,-500.0,0.00038904,6]
[327635999,1716263447792,-500.0,0.00038904,6]
[327636000,1716263447802,-500.0,0.00038904,6]
[327636001,1716263447812,-338.98620028,0.00038904,6]
[327636002,1716263447822,-1593.23,0.00038904,6]
[327636003,1716263447831,-500.0,0.00038904,6]
[327636004,1716263447841,-766.22,0.00038904,6]
[327636005,1716263447850,-500.0,0.00038904,6]
[327636006,1716263447864,-500.0,0.00038904,6]
[327636007,1716263447874,-877.15,0.00038904,6]
[327636008,1716263447883,-1222.33,0.00038904,6]
[327636009,1716263447892,-1050.88,0.00038904,6]
[327636010,1716263447904,-909.97,0.00038904,6]
[327636011,1716263447914,-3904.38,0.00038904,6]
[327636012,1716263447923,-1618.06,0.00038904,6]
[327636013,1716263447933,-500.0,0.00038904,6]
[327636014,1716263447942,-834.74,0.00038904,6]
[327636015,1716263447953,-504.65799453,0.00038904,6]
[327636016,1716263447962,-500.0,0.00038904,6]
[327636017,1716263447971,-619.07,0.00038904,6]
[327636018,1716263447981,-500.0,0.00038904,6]
[327636019,1716263448050,-724.56,0.00038904,6]
[327636020,1716263448060,-500.0,0.00038904,6]
[327636021,1716263448070,-500.0,0.00038904,6]
[327636022,1716263448079,-500.0,0.00038904,6]
[327636023,1716263448088,-500.0,0.00038904,6]
[327636024,1716263448098,-4256.96,0.00038904,6]
[327636025,1716263448107,-672.77,0.00038904,6]
[327636026,1716263448117,-500.0,0.00038904,6]
[327636027,1716263448126,-918.45,0.00038904,6]
[327636028,1716263448136,-610.95,0.00038904,6]
[327636029,1716263448145,-3163.34,0.00038904,6]
[327636030,1716263448154,-500.0,0.00038904,6]
[327636031,1716263448163,-557.34,0.00038904,6]
[327636032,1716263448173,-2458.38,0.00038904,6]
[327636033,1716263448182,-500.0,0.00038904,6]
[327636034,1716263448191,-500.0,0.00038904,6]
[327636035,1716263448200,-500.0,0.00038904,6]
[327636036,1716263448209,-500.0,0.00038904,6]
[327636037,1716263448219,-506.07672965,0.00038904,6]
[327636038,1716263448228,-500.0,0.00038904,6]
[327636039,1716263448238,-1230.08,0.00038904,6]
[327636040,1716263448247,-506.05316256,0.00038904,6]
[327636041,1716263448256,-504.75,0.00038904,6]
[327636042,1716263448266,-568.44,0.00038904,6]
[327636043,1716263448275,-2281.57,0.00038904,6]
[327636044,1716263448285,-167.02343086,0.00038904,6]
[327636045,1716263448294,-151.0,0.00038904,14]
[327636046,1716263448303,-1673.95,0.00038904,6]
[327636047,1716263448312,-1514.65,0.00038904,6]
[327636048,1716263448322,-151.0,0.00038904,14]
[327636049,1716263448331,-1920.0,0.00038904,6]
[327636050,1716263448340,-526.15,0.00038904,6]
[327636051,1716263448350,-1166.48,0.00038904,6]
[327636052,1716263448363,-151.0,0.00038904,14]
[327636053,1716263448373,-151.0,0.00038904,14]
[327636054,1716263448384,-500.0,0.00038904,6]
[327636055,1716263448394,-500.0,0.00038904,6]
[327636056,1716263448403,-507.21749943,0.00038904,6]
[327636057,1716263448413,-1468.12,0.00038904,6]
[327636058,1716263448422,-500.0,0.00038904,6]
[327636059,1716263448431,-500.0,0.00038904,6]
[327636060,1716263448441,-500.0,0.00038904,6]
[327636061,1716263448450,-500.0,0.00038904,6]
[327636062,1716263448460,-3452.45,0.00038904,6]
[327636063,1716263448469,-500.0,0.00038904,6]
[327636064,1716263448478,-1581.95,0.00038904,6]
[327636065,1716263448487,-151.0,0.00038904,14]
[327636066,1716263448496,-2637.4,0.00038904,6]
[327636067,1716263448505,-151.0,0.00038904,14]
[327636068,1716263448515,-576.21,0.00038904,6]
[327636069,1716263448524,-487.68815463,0.00038904,6]